bitfinex/quotes_ETHUSD_20251224
["timestamp","ask_amount","ask_price","bid_price","bid_amount"]
[1766589594456,0.9399,2918.1,2917.6,0.03427474]
[1766589595016,0.9399,2917.9,2917.4,0.84]
[1766589595225,0.9399,2917.9,2917.5,0.03427592]
[1766589595862,0.9399,2917.8,2917.3,0.002]
[1766589596030,0.9399,2917.6,2917.3,0.842]
[1766589596231,0.9399,2917.6,2917.3,0.85914148]
[1766589596568,0.9399,2917.6,2917.4,0.01714207]
[1766589597226,0.9399,2918.0,2917.4,0.01714207]
[1766589597839,0.001,2918.2,2917.5,6.85511935]
[1766589598037,0.04383462,2918.2,2917.6,0.70435646]
[1766589598244,0.98373462,2918.2,2917.7,0.01712856]
[1766589600234,3.47061508,2918.2,2917.5,0.84]
[1766589600441,0.9399,2918.1,2917.5,0.84]
[1766589600748,0.04283755,2918.0,2917.5,0.84]
[1766589600945,0.04283755,2918.0,2917.6,0.01713267]
[1766589601132,3.42778046,2918.2,2917.6,0.03427474]
[1766589601331,0.96295066,2918.1,2917.3,0.002]
[1766589601568,0.96295066,2918.1,2917.4,0.84]
[1766589601849,0.96295066,2918.1,2917.3,0.002]
[1766589602046,0.9372,2917.9,2917.3,0.002]
[1766589602246,0.96295066,2917.8,2917.3,0.002]
[1766589602451,1.74464668,2917.8,2917.3,0.002]
[1766589602678,0.80744668,2917.8,2917.3,0.002]
[1766589602977,0.02575066,2917.8,2917.3,0.002]
[1766589603133,0.02675066,2918.2,2917.3,0.002]
[1766589603333,0.001,2918.2,2917.3,0.002]
[1766589603644,0.001,2918.2,2917.3,0.03627827]
[1766589603830,0.9382,2918.2,2917.3,0.03627827]
[1766589604028,0.9372,2918.0,2917.4,4.2677096]
[1766589604232,0.9372,2918.0,2917.5,0.03427592]
[1766589606030,0.9372,2918.0,2917.6,3.42747463]
[1766589606236,0.001,2918.2,2917.7,0.03427357]
[1766589606546,0.9372,2918.1,2917.7,0.03427357]
[1766589606743,0.96295066,2918.1,2917.4,3.46190696]
[1766589607063,0.9372,2918.0,2917.5,0.84]
[1766589607263,0.9372,2917.8,2917.5,0.84]
[1766589607571,0.9372,2917.8,2917.4,0.87427709]
[1766589607766,0.001,2918.2,2917.5,6.88944586]
[1766589607967,0.001,2918.5,2917.6,6.28746529]
[1766589608142,0.9372,2918.9,2917.7,12.32709421]
[1766589608351,0.9372,2918.9,2917.8,0.87427239]
[1766589608657,3.42677147,2919.1,2917.8,0.87427239]
[1766589608658,0.9382,2918.8,2917.8,0.87427239]
[1766589608854,0.9382,2918.8,2917.8,0.84]
[1766589609057,0.9382,2918.8,2917.9,0.76947143]
[1766589609365,0.9382,2918.8,2918.0,0.03427004]
[1766589609660,0.9382,2918.8,2918.0,0.87427004]
[1766589610044,0.001,2918.8,2918.1,6.8537747]
[1766589610263,0.001,2919.1,2918.2,0.80707216]
[1766589611254,0.9382,2919.1,2918.2,0.80707216]
[1766589611457,0.001,2918.6,2918.3,0.84]
[1766589611654,0.9382,2919.1,2918.4,0.03426535]
[1766589611884,0.001,2919.3,2918.4,0.03426535]
[1766589612060,0.001,2919.3,2918.5,6.85283536]
[1766589612252,0.001,2919.3,2918.6,0.68871007]
[1766589612596,0.001,2919.3,2918.7,0.87426182]
[1766589612891,0.001,2919.4,2918.7,0.87426182]
[1766589613596,0.02575066,2919.7,2918.7,0.87426182]
[1766589613794,0.001,2919.8,2918.7,0.87426182]
[1766589613954,0.001,2919.8,2918.8,0.78161624]
[1766589614286,0.9372,2920.7,2919.1,6.25319055]
[1766589614459,0.9372,2920.5,2919.2,0.84]
[1766589614779,0.9372,2920.3,2919.2,0.84]
[1766589614987,0.9372,2920.3,2919.3,0.84]
[1766589615480,0.02575066,2920.2,2919.3,0.70931906]
[1766589615652,0.9372,2920.1,2919.4,0.87425361]
[1766589616084,0.9372,2919.9,2919.5,0.84]
[1766589616296,0.9372,2919.9,2919.2,3.42558926]
[1766589616458,0.9372,2919.9,2919.3,0.84]
[1766589616968,0.9372,2919.9,2919.1,3.42565999]
[1766589617288,0.9372,2919.9,2919.2,4.95072059]
[1766589617810,0.9372,2919.9,2919.2,0.68514908]
[1766589618092,0.9372,2919.5,2918.6,0.68871007]
[1766589618291,0.96295066,2919.5,2918.0,0.29877552]
[1766589618489,0.96295066,2919.5,2918.3,0.84]
[1766589618694,0.96295066,2919.5,2918.6,3.42625185]
[1766589618864,0.96295066,2919.5,2918.7,0.87426182]
[1766589619263,0.96295066,2919.5,2918.8,3.42605612]
[1766589619465,0.96295066,2919.5,2918.9,0.03425948]
[1766589619666,0.96295066,2919.5,2918.7,0.84]
[1766589619979,0.96295066,2919.5,2918.4,3.42651811]
[1766589620180,0.9372,2919.2,2918.5,0.84]
[1766589620379,0.96295066,2919.2,2918.5,0.84]
[1766589620600,0.96295066,2919.2,2918.4,0.68532062]
[1766589620901,0.96295066,2919.2,2918.5,0.03426417]
[1766589621197,0.96295066,2919.2,2918.4,0.03426535]
[1766589621790,0.96295066,2919.2,2918.3,3.46089972]
[1766589622395,0.9372,2919.0,2918.4,0.84]
[1766589622596,0.9372,2918.8,2918.0,3.42694216]
[1766589622892,0.9372,2918.6,2917.6,0.002]
[1766589623096,0.9372,2918.4,2917.3,0.002]
[1766589623267,0.9372,2918.2,2917.3,0.002]
[1766589623471,0.9372,2918.0,2917.3,0.002]
[1766589623694,0.9372,2917.8,2917.3,0.03627827]
[1766589623904,0.9372,2917.8,2917.3,0.002]
[1766589624892,0.96295066,2917.7,2917.3,0.002]
[1766589625299,0.9372,2917.6,2916.6,6.85724085]
[1766589625502,0.9372,2917.6,2916.7,0.841]
[1766589625975,0.9372,2917.9,2916.8,0.03428414]
[1766589626789,0.9372,2917.9,2916.9,6.85659432]
[1766589626990,0.9372,2917.9,2917.0,0.03428179]
[1766589627190,0.96295066,2917.9,2917.1,1.53008761]
[1766589627389,0.96295066,2917.9,2917.2,0.03427944]
[1766589628180,0.9372,2917.9,2917.2,0.03427944]
[1766589628685,0.9372,2917.9,2917.3,0.841]
[1766589628883,0.9372,2917.9,2917.4,0.03427709]
[1766589629080,0.96295066,2917.8,2916.9,3.4282127]
[1766589629414,0.96295066,2917.8,2917.0,4.26906616]
[1766589629711,0.96295066,2917.8,2916.8,3.42832253]
[1766589629882,0.96295066,2917.8,2917.0,0.841]
[1766589630075,0.96295066,2917.8,2916.8,3.42832253]
[1766589630288,0.9372,2917.6,2916.9,0.841]
[1766589630490,0.9372,2917.4,2916.5,3.43075136]
[1766589630692,0.9372,2917.2,2916.5,0.002]
[1766589630912,0.02575066,2917.3,2916.1,0.843]
[1766589630913,0.9372,2917.0,2916.1,0.843]
[1766589631124,0.9372,2916.7,2916.2,0.0342912]
[1766589631301,0.9372,2916.7,2916.1,0.843]
[1766589631302,0.9172,2916.5,2916.1,0.002]
[1766589633998,0.9172,2916.3,2916.0,0.002]
[1766589634198,0.9172,2916.1,2915.6,3.42976173]
[1766589634420,3.42881352,2916.5,2915.8,3.42953519]
[1766589634421,0.9172,2916.5,2915.8,3.42953519]
[1766589634609,0.9172,2916.5,2916.0,0.002]
[1766589634816,0.02575066,2916.4,2915.9,0.03429472]
[1766589634998,0.9172,2916.3,2915.5,4.27088801]
[1766589635195,0.9172,2916.1,2915.6,0.02569408]
[1766589635507,0.9172,2915.9,2915.4,0.843]
[1766589635710,0.9172,2915.9,2915.5,0.02570319]
[1766589637741,0.96006988,2915.8,2915.4,0.002]
[1766589637902,0.9172,2915.8,2915.4,0.002]
[1766589638105,0.9172,2915.8,2915.4,3.45764967]
[1766589638926,0.9774,2915.6,2915.4,0.02770202]
[1766589639100,0.04286106,2916.4,2915.4,0.002]
[1766589639297,0.843,2916.5,2915.5,3.42993549]
[1766589639298,0.9774,2916.3,2915.5,3.42993549]
[1766589639503,0.9774,2916.3,2915.6,3.45541476]
[1766589639504,1.50232155,2916.3,2915.6,3.45541476]
[1766589639701,3.42814381,2917.1,2915.7,0.841]
[1766589639702,0.04285959,2916.5,2915.7,0.841]
[1766589639922,0.9774,2916.5,2915.8,0.02568819]
[1766589641429,0.04285518,2916.8,2915.8,0.02568819]
[1766589641602,0.04285371,2916.9,2915.9,6.85894578]
[1766589641800,1.02025371,2916.9,2916.0,0.02568026]
[1766589642025,1.02025371,2916.9,2916.1,1.5294626]
[1766589642226,1.02025371,2916.9,2916.2,0.02567643]
[1766589642227,0.9774,2916.9,2916.2,0.02567643]
[1766589642799,0.9774,2916.9,2916.1,0.6884626]
[1766589643036,0.9774,2916.7,2916.2,0.841]
[1766589643541,0.9774,2916.7,2916.3,0.02567658]
[1766589643738,0.9774,2916.7,2916.2,3.45479505]
[1766589644201,0.04285371,2916.9,2916.3,3.42898049]
[1766589644401,0.9774,2917.1,2916.4,0.02567262]
[1766589644714,0.04285224,2917.0,2916.5,0.841]
[1766589644914,0.04285224,2917.0,2915.8,3.42951591]
[1766589644915,0.09877552,2916.8,2915.5,0.002]
[1766589645107,0.09877552,2916.8,2914.9,0.002]
[1766589645108,0.9774,2916.1,2914.9,0.002]
[1766589645320,0.9774,2915.9,2914.9,0.002]
[1766589645527,0.98564246,2916.0,2914.9,0.002]
[1766589645528,0.9774,2915.7,2914.9,0.002]
[1766589645837,4.40746105,2915.4,2914.9,0.002]
[1766589646025,1.02027723,2915.3,2914.7,0.002]
[1766589646225,0.9774,2915.1,2914.3,0.002]
[1766589646422,0.9774,2914.9,2914.3,0.002]
[1766589646649,0.04288458,2914.8,2914.3,0.002]
[1766589647167,0.09877552,2915.3,2913.7,0.002]
[1766589647168,1.8214,2914.7,2913.7,0.002]
[1766589647320,1.8214,2914.7,2913.5,0.002]
[1766589647321,0.9774,2914.5,2913.5,0.002]
[1766589647520,0.9774,2914.3,2913.5,0.002]
[1766589647834,0.04289341,2914.2,2913.5,0.002]
[1766589648231,0.844,2914.6,2913.5,0.975]
[1766589648568,0.042889,2914.5,2913.5,0.975]
[1766589649091,0.9774,2915.1,2913.7,0.973]
[1766589649357,0.9774,2914.8,2913.8,1.0224]
[1766589649554,0.04288606,2914.7,2913.8,1.0224]
[1766589650059,0.04288606,2914.7,2913.9,0.973]
[1766589650221,0.04288017,2915.1,2914.1,0.973]
[1766589652556,3.47340155,2915.1,2914.1,4.40452164]
[1766589652758,3.47340155,2915.1,2913.8,0.1814]
[1766589652759,0.9774,2915.0,2913.8,0.1814]
[1766589653055,0.9774,2914.8,2913.5,0.975]
[1766589653241,0.9774,2914.6,2913.5,0.002]
[1766589653445,0.88688606,2914.7,2913.5,0.002]
[1766589653446,0.9774,2914.4,2913.5,0.002]
[1766589653659,0.9774,2914.2,2913.5,0.002]
[1766589653947,0.04289489,2914.1,2913.5,0.002]
[1766589654149,0.9774,2914.4,2913.5,3.43429413]
[1766589654359,0.9774,2914.4,2913.5,0.78638242]
[1766589654575,0.9774,2914.4,2913.5,4.2186482]
[1766589655029,3.43135572,2914.3,2913.5,0.78638242]
[1766589655230,4.40866349,2914.4,2913.5,4.21863824]
[1766589655431,1.76136969,2914.4,2913.5,4.21863824]
[1766589655731,5.19264987,2914.4,2913.5,0.78638242]
[1766589655953,5.19264987,2914.4,2913.5,3.43428071]
[1766589655954,1.76136969,2914.4,2913.5,3.43428071]
[1766589656558,0.04289194,2914.3,2913.5,3.43428071]
[1766589656729,0.78396969,2914.4,2913.6,0.973]
[1766589656931,0.04289194,2914.3,2913.6,4.4051022]
[1766589657162,3.47392837,2914.6,2913.6,4.4051022]
[1766589657353,0.04288753,2914.6,2913.6,7.83728232]
[1766589657576,0.04288753,2914.6,2913.7,1.62592823]
[1766589658033,0.04288753,2914.6,2913.7,0.78392823]
[1766589658242,3.47390159,2914.6,2913.7,1.62592823]
[1766589658429,3.47390159,2914.6,2913.8,0.973]
[1766589658430,0.04288753,2914.6,2913.8,0.973]
[1766589658634,0.9774,2915.0,2914.0,0.973]
[1766589658938,0.04288311,2914.9,2914.0,4.40459133]
[1766589659160,0.9774,2914.8,2913.9,0.25989282]
[1766589659468,0.9774,2914.6,2913.6,0.973]
[1766589659673,0.042889,2914.5,2913.6,0.973]
[1766589659861,1.020289,2914.5,2913.6,1.815]
[1766589660776,1.020289,2914.5,2913.5,0.002]
[1766589660957,0.9774,2914.3,2913.5,0.002]
[1766589661153,0.04289341,2914.2,2913.5,0.975]
[1766589661348,0.042889,2914.5,2913.5,0.975]
[1766589661549,0.9926,2914.4,2913.5,0.002]
[1766589661762,10.29321841,2914.6,2913.5,0.002]
[1766589661763,1.03549194,2914.3,2913.5,0.002]
[1766589662478,1.03542591,2914.2,2913.5,0.002]
[1766589662860,1.02932184,2914.5,2913.5,0.9419]
[1766589663057,1.02932184,2914.5,2913.7,0.9399]
[1766589663259,0.04288606,2914.7,2913.7,0.9399]
[1766589663455,0.845,2914.8,2913.7,0.9399]
[1766589663762,0.001,2915.1,2913.7,0.9399]
[1766589663957,3.47439645,2915.1,2913.7,0.9399]
[1766589664265,0.9926,2914.9,2913.9,0.9399]
[1766589664465,0.04288458,2914.8,2913.9,0.9399]
[1766589664674,0.001,2915.1,2913.9,0.9399]
[1766589664854,0.04388017,2915.1,2913.9,0.9399]
[1766589665048,3.47429536,2915.1,2914.1,0.9399]
[1766589665246,0.9926,2914.9,2914.0,3.43170899]
[1766589665460,0.04288458,2914.8,2914.1,1.7819]
[1766589665662,0.04288311,2914.9,2914.1,1.7819]
[1766589667087,0.001,2915.1,2914.4,0.9399]
[1766589667249,0.001,2915.1,2914.5,0.9399]
[1766589667459,0.001,2915.1,2914.5,1.7819]
[1766589667933,0.001,2915.1,2914.6,0.9399]
[1766589668094,3.43146425,2915.1,2914.2,0.9399]
[1766589668254,0.9926,2914.9,2914.1,0.842]
[1766589668585,0.04288458,2914.8,2913.8,0.9399]
[1766589668782,1.03548458,2914.8,2913.8,0.9399]
[1766589668961,1.03548458,2914.8,2913.8,4.37180983]
[1766589669166,0.9926,2914.8,2913.9,6.86365352]
[1766589669485,1.18814643,2915.0,2914.0,0.9399]
[1766589669682,0.001,2915.1,2914.2,0.9399]
[1766589669883,3.43141793,2915.1,2914.2,0.9399]
[1766589670182,1.03548164,2915.0,2913.9,4.27382676]
[1766589670384,1.03548164,2915.0,2913.9,8.64555352]
[1766589670681,0.04288164,2915.0,2914.0,0.9399]
[1766589670877,0.001,2915.1,2914.0,0.9399]
[1766589671187,0.001,2915.1,2913.9,12.00203563]
[1766589671188,0.04287723,2915.3,2914.2,0.9399]
[1766589671366,0.04287576,2915.4,2914.4,0.9399]
[1766589671697,0.04287576,2915.4,2914.5,1.11809]
[1766589672787,4.42311844,2915.9,2914.5,1.11809]
[1766589672988,0.04286988,2915.8,2914.5,1.11809]
[1766589673154,0.001,2915.0,2914.7,0.9399]
[1766589673358,7.85256136,2915.9,2914.8,1.7819]
[1766589673567,0.04286988,2915.8,2914.8,1.7819]
[1766589674058,0.001,2915.9,2914.9,0.9399]
[1766589674258,3.6065752,2917.3,2914.9,0.9399]
[1766589674259,0.9926,2916.9,2914.9,0.9399]
[1766589674460,3.42885751,2916.5,2914.9,0.9399]
[1766589674659,6.85902852,2916.3,2914.9,0.9399]
[1766589674869,0.73305296,2916.2,2915.1,0.9399]
[1766589675083,4.16220819,2916.2,2915.2,6.86059274]
[1766589675259,0.73305296,2916.2,2915.3,0.9399]
[1766589675469,0.73305296,2916.2,2915.2,6.86059274]
[1766589675470,0.042864,2916.2,2915.5,0.9399]
[1766589675676,0.001,2916.3,2915.5,0.9399]
[1766589676171,6.90190993,2916.3,2915.5,0.9399]
[1766589676371,3.4300025,2916.3,2915.5,0.9399]
[1766589676686,6.90190993,2916.3,2915.5,0.9399]
[1766589676889,0.69019099,2916.2,2915.3,0.842]
[1766589677078,0.04286547,2916.1,2915.3,0.842]
[1766589677279,0.04286547,2916.1,2915.3,4.27210943]
[1766589677691,0.04286547,2916.1,2915.4,0.9399]
[1766589677896,3.47210906,2916.1,2915.4,0.9399]
[1766589678198,0.39017638,2916.1,2915.4,0.9399]
[1766589678899,0.04286547,2916.1,2915.4,0.9399]
[1766589679102,0.04286253,2916.3,2915.4,0.9399]
[1766589679301,3.47150791,2916.6,2915.6,0.9399]
[1766589679988,3.42876735,2916.5,2915.6,0.9399]
[1766589680302,0.04286106,2916.4,2915.6,0.9399]
[1766589680608,0.69003958,2916.3,2915.6,1.7819]
[1766589680806,0.69003958,2916.3,2915.6,0.9399]
[1766589681114,0.9936,2916.1,2915.1,0.9399]
[1766589681288,4.46482222,2916.0,2915.1,0.9399]
[1766589681485,0.9926,2915.8,2913.9,2.12885855]
[1766589681812,1.09137552,2915.6,2913.8,3.4319149]
[1766589682109,0.9926,2915.4,2913.7,1.7819]
[1766589682296,0.9926,2915.2,2913.8,3.43189115]
[1766589682491,1.87948017,2915.1,2913.9,0.52137912]
[1766589682703,0.844,2915.0,2914.0,4.37160899]
[1766589682892,0.04288311,2914.9,2914.0,0.9399]
[1766589683404,3.43076711,2914.8,2914.0,0.9399]
[1766589683576,0.39025108,2914.7,2914.0,0.9399]
[1766589683899,0.39025108,2914.7,2914.0,4.37154528]
[1766589684226,0.04288606,2914.7,2914.0,0.9399]
[1766589684523,1.03548458,2914.8,2913.7,0.842]
[1766589684726,1.03548458,2914.8,2913.6,0.9419]
[1766589685079,0.9926,2914.8,2913.7,3.43203285]
[1766589685403,0.9926,2914.8,2913.8,0.9399]
[1766589685718,0.04288458,2914.8,2913.8,0.9399]
[1766589685891,0.04288311,2914.9,2913.8,0.9399]
[1766589687309,0.04288311,2914.9,2913.9,0.842]
[1766589687505,6.86153422,2914.8,2913.9,0.842]
[1766589687803,0.04288606,2914.7,2913.9,0.842]
[1766589688006,0.04288753,2914.6,2913.8,0.9399]
[1766589688210,0.04288606,2914.7,2913.8,0.9399]
[1766589689309,1.03548606,2914.7,2913.6,0.002]
[1766589689508,6.86224052,2914.5,2913.6,0.002]
[1766589689811,0.91277452,2914.4,2913.6,0.002]
[1766589690176,0.86988405,2914.4,2913.6,0.002]
[1766589690406,0.001,2914.9,2913.7,0.9399]
[1766589690407,0.04288606,2914.7,2913.7,0.9399]
[1766589690606,0.001,2914.9,2913.7,0.9399]
[1766589690806,0.9926,2914.8,2913.8,0.843]
[1766589690981,1.03548606,2914.7,2913.7,0.9399]
[1766589691307,1.03548606,2914.7,2913.6,0.002]
[1766589691510,0.18794861,2914.6,2913.6,0.002]
[1766589691710,6.86247598,2914.4,2913.6,0.002]
[1766589692005,0.04289194,2914.3,2913.6,0.002]
[1766589692178,0.04289194,2914.3,2912.8,0.002]
[1766589692179,1.07047552,2914.2,2912.8,0.002]
[1766589692384,1.07047552,2914.2,2912.6,0.002]
[1766589692385,0.9717,2913.7,2912.6,0.002]
[1766589692584,0.9717,2913.5,2912.6,0.002]
[1766589692780,0.9717,2913.3,2912.6,0.002]
[1766589692982,0.04290814,2913.2,2912.6,0.002]
[1766589693793,4.40446921,2913.1,2912.6,0.002]
[1766589693997,0.04291108,2913.0,2912.3,0.002]
[1766589694318,0.9717,2912.8,2911.4,3.43470038]
[1766589694631,0.9717,2912.6,2911.4,3.4347062]
[1766589694917,1.01461845,2912.5,2911.1,0.9774]
[1766589695085,0.9717,2912.3,2910.9,3.43529342]
[1766589695282,0.845,2912.6,2910.7,1.8204]
[1766589695283,0.9717,2912.1,2910.7,1.8204]
[1766589695489,0.04292582,2912.0,2910.9,0.9774]
[1766589695715,0.04292582,2912.0,2911.0,3.43524562]
[1766589695899,0.57229045,2912.0,2911.0,4.75617018]
[1766589696107,4.00639561,2912.0,2911.0,1.32092456]
[1766589696283,0.57229045,2912.0,2911.0,0.9774]
[1766589696692,4.00635874,2912.0,2910.4,0.17896073]
[1766589696912,0.52936463,2912.0,2911.0,0.9439]
[1766589697093,3.43331555,2912.7,2911.2,0.9439]
[1766589697296,4.27831555,2912.7,2911.2,0.9439]
[1766589697496,0.04291698,2912.6,2911.5,0.9439]
[1766589697791,0.04291698,2912.6,2911.4,0.002]
[1766589697792,0.04291698,2912.6,2911.6,6.86907542]
[1766589698092,0.04291698,2912.6,2911.7,0.9439]
[1766589698299,0.04291698,2912.6,2911.8,0.78129754]
[1766589698819,0.845,2912.9,2911.9,0.9439]
[1766589699115,0.04291403,2912.8,2911.9,0.9439]
[1766589700113,0.04291403,2912.8,2912.0,3.43406593]
[1766589700314,0.04291403,2912.8,2911.6,4.27753771]
[1766589700315,0.9737155,2912.7,2911.6,0.843]
[1766589700813,0.9308,2912.6,2911.5,3.43459243]
[1766589701003,0.04291845,2912.5,2911.5,3.43459243]
[1766589701204,0.9308,2912.3,2911.4,0.002]
[1766589701405,0.845,2912.4,2911.4,0.002]
[1766589701406,0.9308,2912.2,2911.4,0.002]
[1766589701706,0.97372287,2912.2,2911.4,0.002]
[1766589702436,0.9308,2912.0,2910.9,3.43528713]
[1766589702722,0.88792729,2911.9,2911.0,1.28742871]
[1766589703288,0.9308,2911.8,2910.6,0.843]
[1766589703515,0.97373024,2911.7,2910.5,0.9439]
[1766589703719,0.97373024,2911.7,2910.2,0.002]
[1766589704234,0.9308,2911.5,2910.2,0.002]
[1766589704414,0.04293467,2911.4,2910.2,0.9459]
[1766589705022,0.97373467,2911.4,2910.2,0.9459]
[1766589705404,1.7758,2911.3,2910.2,0.9459]
[1766589705703,0.22481109,2911.2,2910.2,1.12479]
[1766589705889,1.15561109,2911.2,2910.2,0.002]
[1766589706426,0.9308,2911.1,2910.2,0.002]
[1766589706622,0.97374057,2911.0,2910.2,0.002]
[1766589707122,0.97374057,2911.0,2909.7,3.43674153]
[1766589707328,0.97374057,2911.0,2909.6,3.43684188]
[1766589707494,0.09877552,2910.9,2909.3,0.17898273]
[1766589707697,1.02957552,2910.7,2909.3,0.17898273]
[1766589707897,0.9308,2910.5,2909.1,3.43739404]
[1766589708213,0.04294942,2910.4,2909.4,0.9439]
[1766589709007,0.18187347,2911.2,2909.5,0.03437016]
[1766589709248,0.04276697,2911.1,2909.6,0.9439]
[1766589709396,0.04276697,2911.1,2909.8,0.9439]
[1766589709595,0.04276697,2911.1,2909.9,0.97826544]
[1766589710406,0.04276697,2911.1,2910.0,6.87285222]
[1766589710591,0.04276697,2911.1,2910.1,0.03436308]
[1766589710795,4.40870177,2911.1,2910.1,0.03436308]
[1766589711030,0.9308,2911.0,2909.9,3.43651298]
[1766589711193,0.97356697,2910.9,2909.9,3.43651298]
[1766589711394,0.9308,2910.8,2909.7,0.17869]
[1766589711604,0.9308,2910.6,2909.7,0.17869]
[1766589711808,0.845,2910.9,2909.5,0.843]
[1766589711809,0.97356697,2910.5,2909.5,0.843]
[1766589712012,0.9308,2910.3,2909.5,0.03437016]
[1766589712216,0.9308,2910.1,2909.4,3.43707181]
[1766589712411,0.04276697,2910.0,2909.4,0.77174291]
[1766589712643,0.9308,2910.6,2909.5,0.03437016]
[1766589712854,0.9308,2910.4,2909.5,0.03437016]
[1766589713015,0.9308,2910.2,2909.2,0.843]
[1766589713215,0.9308,2911.0,2909.4,0.9439]
[1766589713421,0.9308,2911.0,2909.5,0.97827016]
[1766589713801,0.9308,2911.0,2909.5,0.03437016]
[1766589714109,0.9308,2910.8,2909.5,0.843]
[1766589714424,0.9308,2910.6,2909.2,3.43737109]
[1766589714604,0.9308,2910.4,2909.3,0.55679963]
[1766589714802,0.9308,2910.4,2909.1,1.7869]
[1766589714803,0.9308,2910.4,2909.1,5.22433972]
[1766589715008,0.9308,2910.2,2909.1,3.43743972]
[1766589715309,0.9308,2910.2,2909.2,0.03437371]
[1766589716541,0.9308,2910.0,2909.2,0.03437371]
[1766589716837,3.43630803,2910.1,2908.5,0.17902287]
[1766589716838,0.9308,2909.8,2908.5,0.17902287]
[1766589717140,0.9308,2909.6,2908.7,0.844]
[1766589717309,0.3436308,2910.0,2908.8,0.03437843]
[1766589717310,0.03437489,2909.5,2908.8,0.03437843]
[1766589717513,0.9308,2909.8,2908.8,0.03437843]
[1766589717821,0.96517489,2909.7,2908.8,3.47216711]
[1766589718215,0.96517489,2909.7,2908.8,0.03437843]
[1766589718416,3.43689854,2909.6,2908.8,0.03437843]
[1766589718616,0.9308,2909.4,2908.4,0.21183635]
[1766589718843,0.97376566,2909.3,2908.4,3.65013284]
[1766589719015,0.97376566,2909.3,2908.5,0.01719336]
[1766589719214,0.97376566,2909.3,2907.9,0.002]
[1766589719215,0.8005,2909.2,2907.9,0.9459]
[1766589719416,0.22039518,2909.1,2908.0,0.9439]
[1766589719638,0.22039518,2909.1,2908.0,4.3826669]
[1766589719846,0.22039518,2909.1,2907.9,0.002]
[1766589719847,0.8005,2908.9,2907.9,0.002]
[1766589720168,0.7985,2908.7,2908.0,0.002]
[1766589720456,0.17742657,2909.1,2908.1,7.72134258]
[1766589720457,0.042976,2908.6,2908.1,7.72134258]
[1766589720618,0.04297009,2909.0,2908.2,1.71623426]
[1766589720811,4.23576852,2909.3,2908.2,1.71623426]
[1766589721043,0.84146713,2909.2,2908.0,0.002]
[1766589721244,0.7965,2908.9,2907.5,3.43934798]
[1766589721443,0.7965,2908.7,2907.4,4.28347807]
[1766589721631,0.7965,2908.5,2907.4,5.05579848]
[1766589721830,0.04297895,2908.4,2907.4,1.61632041]
[1766589722048,0.04297895,2908.4,2907.4,5.05581146]
[1766589722215,0.04297895,2908.4,2907.9,3.4388637]
[1766589722418,0.7965,2909.0,2908.0,3.43873561]
[1766589722660,0.04297157,2908.9,2908.0,3.43873561]
[1766589723243,0.04297157,2908.9,2907.9,5.19715446]
[1766589723725,0.83947157,2908.9,2907.6,0.844]
[1766589723931,1.56797048,2908.8,2907.7,3.43910208]
[1766589724249,0.7965,2909.3,2908.0,0.9143]
[1766589724552,3.43748925,2909.1,2908.1,5.19692624]
[1766589724755,0.04297009,2909.0,2908.1,0.9143]
[1766589724954,0.34804593,2908.9,2908.1,4.35296273]
[1766589725156,0.04297304,2908.8,2908.1,4.35296273]
[1766589725319,0.04297304,2908.8,2908.0,0.844]
[1766589725528,0.04297304,2908.8,2907.8,0.844]
[1766589725727,0.7965,2908.8,2907.8,1.7583]
[1766589726028,4.38226477,2909.1,2908.1,7.79160802]
[1766589726029,0.846,2909.1,2908.1,7.79160802]
[1766589726370,0.04296861,2909.1,2908.2,0.9143]
[1766589726658,0.7965,2909.6,2908.1,0.9143]
[1766589726861,0.93823822,2909.5,2908.1,0.9143]
[1766589727033,0.78120353,2909.4,2908.2,0.77918476]
[1766589727236,0.04296566,2909.3,2908.2,0.77918476]
[1766589727822,0.78120353,2909.4,2908.3,0.844]
[1766589728078,0.7965,2909.2,2908.3,0.844]
[1766589728234,0.04296861,2909.1,2908.3,0.844]
[1766589728565,0.04296861,2909.1,2908.4,0.9143]
[1766589728860,3.43689854,2909.6,2908.5,7.79069676]
[1766589728861,0.04296566,2909.3,2908.5,7.79069676]
[1766589729024,0.04296713,2909.2,2908.5,7.79069676]
[1766589729218,3.53524171,2910.0,2908.6,0.9143]
[1766589729428,3.53524171,2910.0,2908.5,10.31459514]
[1766589729429,0.89527552,2909.8,2908.5,3.43819838]
[1766589729631,0.89527552,2909.8,2908.5,0.844]
[1766589729632,0.89527552,2909.6,2908.5,0.844]
[1766589729851,0.09877552,2909.4,2908.5,0.844]
[1766589730052,0.83946566,2909.3,2908.5,0.844]
[1766589730256,0.83946566,2909.3,2908.1,0.9143]
[1766589730476,0.83946566,2909.3,2908.1,1.7583]
[1766589730618,0.7965,2909.1,2908.1,1.7583]
[1766589730823,0.7965,2909.1,2908.2,3.43851755]
[1766589730824,0.81009431,2909.0,2908.2,3.43851755]
[1766589731525,0.53194969,2909.9,2908.3,0.9143]
[1766589731747,3.43654421,2909.9,2908.3,0.9143]
[1766589731948,0.04295827,2909.8,2908.3,0.9143]
[1766589732524,0.0429568,2909.9,2908.3,0.9143]
[1766589732723,3.43666231,2909.8,2908.5,0.9143]
[1766589732953,0.04295975,2909.7,2908.7,0.9143]
[1766589733129,0.7965,2909.5,2908.3,7.72082173]
[1766589733332,0.7965,2909.5,2908.0,0.002]
[1766589733333,0.7965,2909.3,2908.0,0.002]
[1766589733630,0.09877552,2909.5,2908.1,0.9143]
[1766589733631,0.7965,2909.1,2908.1,0.9143]
[1766589733838,0.04297009,2909.0,2908.1,0.9143]
[1766589734037,0.04297009,2909.0,2908.2,4.52883879]
[1766589734237,0.7965,2909.3,2908.1,3.43866536]
[1766589734435,0.7965,2909.1,2908.0,4.28472379]
[1766589734641,6.8754512,2908.9,2908.0,0.846]
[1766589734963,0.04297304,2908.8,2908.0,4.28478954]